Cogmind - Beta 15 @@@ ROGUE MODE // 2025.07.06 @ 12:17:08 Player: winnking222 Result: Destroyed by 8R-AWN with 8R-AWN's Boregun Performance ------------- Evolutions (1) 500 Regions Visited (4) 800 Robots Destroyed (67) 335 Value Destroyed (1464) 1464 Prototype IDs (29) 580 Alien Tech Used (0) 0 Bonus (378) 378 TOTAL SCORE: 4057 Bonus ------- Follower Combat Kills 78 Aligned with FarCom 300 Cogmind --------- Core Integrity 0/400 Matter 0/300 Energy 99/100 System Corruption 1% Temperature Cool (0) Movement Core (100) Ox1 Location -9/Exiles Parts ------- > --- POWER (1) -------- (None) > --- PROPULSION (3) --- (None) > --- UTILITY (2) ------ Salvage Targeting Computer > --- WEAPON (3) ------- Heavy Assault Rifle Autogun > --- INVENTORY (5) ---- (None) Peak State ------------ > --- POWER ------------ Improved Ion Engine > --- PROPULSION ------- Light Treads Light Treads Light Treads > --- UTILITY ---------- High-capacity Storage Unit Medium Armor Plating > --- WEAPON ----------- AWS/Gauss > --- INVENTORY -------- Ion Engine Light Ion Engine Light Treads Light Treads Light Treads Armored Wheel Improved Heat Sink Improved Heat Sink High-capacity Matter Pod Seismic Detector Salvage Targeting Computer Improved Light Armor Plating Heavy Assault Rifle Heavy Assault Rifle Autogun Autogun Grenade Launcher Improved Datajack Plasma Cutter Heavy Flail [Rating: 27] Favorites ----------- Power Improved Ion Engine Engine Improved Ion Engine Propulsion Light Treads Treads Light Treads Utility High-capacity Storage Unit Device Seismic Detector Storage High-capacity Storage Unit Processor Salvage Targeting Computer Protection Medium Armor Plating Weapon Autogun Energy Gun Improved Medium Laser Ballistic Gun Autogun Launcher Grenade Launcher Build | -11 -10 -9 -9 -9 ------- Run | Yrd Mat Mat Min Exi Slots Evolved 2 | . . 2 . . Power . | . . . . . Propulsion 1 | . . 1 . . Utility . | . . . . . Weapon 1 | . . 1 . . Parts Attached 44 | 7 5 21 1 10 Power 5 | 1 1 2 . 1 Engine 5 | 1 1 2 . 1 Core . | . . . . . Reactor . | . . . . . Propulsion 14 | 2 . 10 . 2 Treads 14 | 2 . 10 . 2 Leg . | . . . . . Wheel . | . . . . . Hover . | . . . . . Flight . | . . . . . Utility 9 | 2 2 2 1 2 Device 2 | 1 . 1 . . Storage 3 | 1 2 . . . Processor 1 | . . . . 1 Hackware . | . . . . . Protection 3 | . . 1 1 1 Artifact . | . . . . . Weapon 16 | 2 2 7 . 5 Energy Gun 3 | 1 . 2 . . Energy Cannon . | . . . . . Ballistic Gun 12 | 1 2 5 . 4 Ballistic Cannon . | . . . . . Launcher 1 | . . . . 1 Special Weapon . | . . . . . Impact Weapon . | . . . . . Slashing Weapon . | . . . . . Piercing Weapon . | . . . . . Special Melee Weapon . | . . . . . Unidentified Prototypes 1 | . . 1 . . Parts Lost 14 | . . 2 1 11 Power 2 | . . . . 2 Propulsion 4 | . . . . 4 Utility 4 | . . 1 1 2 Weapon 4 | . . 1 . 3 Highest Loss Streak 5 | . . 1 1 5 To Critical Strikes 6 | . . . . 6 Average Backups 13 | 2 8 19 19 9 Power 1 | . . . 2 1 Propulsion 2 | 1 1 3 4 1 Utility 4 | . 3 5 5 2 Weapon 4 | . 1 7 6 2 Tool/Special . | . . . . . Unused Backups 21 | . 2 6 1 12 Power 5 | . . 1 . 4 Propulsion 3 | . 1 1 . 1 Utility 6 | . 1 1 . 4 Weapon 5 | . . 3 1 1 Tool/Special 2 | . . . . 2 Average Slot Usage (%) 93 | . 100 99 99 72 Engine 11 | . 14 11 11 10 Treads 30 | . 28 32 33 29 Device 6 | . 14 6 . . Storage 10 | . 14 11 11 4 Processor 1 | . . . . 6 Protection 5 | . . 4 10 10 Energy Gun 6 | . 1 10 11 . Ballistic Gun 20 | . 26 22 22 10 Peak Build Rating 27 | 7 10 19 18 27 Average Rating 14 | 5 9 17 17 14 On Entrance 10 | . 7 10 18 18 Naked Turns . | . . . . . Heaviest Build 64 | 13 52 63 63 64 Greatest Support 60 | 40 40 60 60 60 Greatest Overweight (x) 4 | . 1 1 1 4 Average Overweight (x) . | . . . . . Largest Inventory Capacity 20 | 8 20 20 20 20 Average Capacity 16 | 7 14 20 20 11 Most Carried 20 | 5 11 20 20 20 Average Carried 13 | 2 8 19 19 9 Final Capacity 20 | 8 20 20 20 5 Final Carried 20 | 4 11 20 20 . Class Distribution -------------------- 29% | Mutant 26% | Scavenger-Tank 20% | Scavenger-Gunner 15% | Scavenger-Mutant 6% | Gunner Dominant Class ---------------- Mutant | -10/Materials Scavenger-Gunner | -9/Materials Scavenger-Tank | -9/Mines Scavenger-Mutant | -9/Exiles Resources | -11 -10 -9 -9 -9 ----------- Run | Yrd Mat Mat Min Exi Matter Collected 1972 | 309 618 807 38 200 Remotely . | . . . . . Salvage Created 2390 | 83 642 1570 87 8 Parts 157 | 15 29 109 4 . Haulers Intercepted 4 | . 2 2 . . Recyclers Shooed 1 | . 1 . . . Parts Field Recycled . | . . . . . Retrieved Matter . | . . . . . Parts Self-Destructed . | . . . . . Prevented . | . . . . . Kills | -11 -10 -9 -9 -9 ------- Run | Yrd Mat Mat Min Exi Combat Hostiles Destroyed 46 | . 13 28 2 3 Guns 43 | . 13 28 2 . AOE 3 | . . . . 3 Classes Destroyed 10 | 1 4 4 . 1 Worker 1 | . . 1 . . Builder 1 | . . 1 . . Tunneler 6 | 5 . 1 . . Hauler 4 | . 2 2 . . Recycler 5 | . . 5 . . Watcher 7 | . 3 4 . . Swarmer 15 | . 3 12 . . Grunt 19 | . 10 7 2 . Sentry 9 | . . 9 . . Assembled 3 | . . . . 3 Best Kill Streak 7 | 2 4 7 2 3 Combat Bots Only 6 | . 4 6 2 3 Max Kills in Single Turn 2 | 1 1 2 1 2 Gunslinging 1 | . . 1 . . Exploded 2 | . . . . 2 Melee . | . . . . . Uniques/NPCs Destroyed . | . . . . . Combat | -11 -10 -9 -9 -9 -------- Run | Yrd Mat Mat Min Exi Hostile Shots Fired 295 | . 64 94 12 125 Missed 81 | . 17 21 . 43 Hits 214 | . 47 73 12 82 Projectile 214 | . 47 73 12 82 AOE 6 | . . . 6 . Critical Strikes 37 | . . 8 . 29 Damage Taken 3182 | . 511 877 335 1459 Core 515 | . 110 95 14 296 Absorbed by Shields . | . . . . . Core Remaining (%) 78 | 100 56 . . . Volleys Fired 188 | 13 51 72 4 48 Largest 3 | 2 2 3 3 3 Hottest 102 | 70 70 102 102 76 Shots Fired 443 | 26 103 203 12 99 Gun 439 | 26 103 203 12 95 Cannon . | . . . . . Launcher 4 | . . . . 4 Special . | . . . . . Kinetic 353 | 13 92 145 8 95 Thermal 86 | 13 11 58 4 . Explosive 4 | . . . . 4 Electromagnetic . | . . . . . Robot Hit Streak 18 | 4 10 14 18 8 Robot Miss Streak 5 | 3 4 5 . 2 Penetration Max . | . . . . . Secondary Targets 6 | . 3 3 . . Max Gunslinging Chain 1 | . 1 1 . . Shots Hit Robots 275 | 13 69 121 10 62 Core Hits 107 | 5 25 58 4 15 Critical Kills 1 | . 1 . . . Critical Parts Destroyed 2 | . 1 1 . . Critical Strikes 12 | 2 3 7 . . Burn 9 | 2 1 6 . . Destroy 3 | . 2 1 . . Melee Attacks . | . . . . . Impact . | . . . . . Slashing . | . . . . . Piercing . | . . . . . Sneak Attacks . | . . . . . Combat Hostiles . | . . . . . Follow-up Attacks . | . . . . . Damage Inflicted 4411 | 159 1033 1976 153 1090 Guns 4242 | 159 1022 1964 153 944 Cannons . | . . . . . Explosions 146 | . . . . 146 Melee . | . . . . . Ramming 23 | . 11 12 . . Kinetic 3332 | 98 924 1282 84 944 Thermal 910 | 61 98 682 69 . Explosive 146 | . . . . 146 Electromagnetic . | . . . . . Impact . | . . . . . Slashing . | . . . . . Piercing . | . . . . . Highest Corruption 2 | . 2 1 1 1 Average Corruption 1 | . 2 1 1 1 Corruption Purged . | . . . . . Corruption Blocked . | . . . . . Effects 43 | . 16 18 3 6 Message Errors 9 | . 3 6 . . Matter Fused 10 | . 2 6 1 1 Heat Flow Errors 8 | . 4 2 . 2 Energy Discharges 4 | . 2 1 . 1 Parts Rejected 2 | . . . . 2 Data Loss (minor) 4 | . 2 1 1 . Data Loss (major) 1 | . . . 1 . Misfires 3 | . 2 1 . . Weapon Failures 2 | . 1 1 . . Overload Shots . | . . . . . Overflow Damage . | . . . . . Projectiles . | . . . . . Explosions . | . . . . . Melee . | . . . . . Knockbacks . | . . . . . Impact . | . . . . . Kinetic . | . . . . . Secondary . | . . . . . Self-Inflicted Damage . | . . . . . Shots . | . . . . . Rammed 2 | . 1 1 . . Targets Rammed 2 | . 1 1 . . Kicked . | . . . . . Crushed . | . . . . . Highest Temperature 396 | 36 255 396 218 139 Average Temperature 68 | 12 35 100 111 24 Received Heat Transfer 759 | . 252 450 57 . Effects 11 | . . 11 . . Energy Bleed 2 | . . 2 . . Interference 6 | . . 6 . . Matter Decay 1 | . . 1 . . Short Circuit 1 | . . 1 . . Damage (minor) 1 | . . 1 . . Siege Activations . | . . . . . Martial Activations . | . . . . . Shielding Activations . | . . . . . Robots Disrupted . | . . . . . Combat Hostiles . | . . . . . Robots Corrupted . | . . . . . Combat Hostiles . | . . . . . Parts Fried . | . . . . . Impact Corruptions . | . . . . . Robots Melted . | . . . . . Combat Hostiles . | . . . . . Parts Melted 5 | 1 . 4 . . Heat Transferred 2775 | 333 370 1924 148 . Parts Sabotaged . | . . . . . Parts Stolen . | . . . . . Parts Stripped . | . . . . . Power Chain Reactions . | . . . . . Alert | -11 -10 -9 -9 -9 ------- Run | Yrd Mat Mat Min Exi Maximum Alert Level 1 | . . 1 . . Low Security (%) 74 | 100 100 53 100 . Level 1 25 | . . 46 . . Level 2 . | . . . . . Level 3 . | . . . . . Level 4 . | . . . . . Level 5 . | . . . . . High Security . | . . . . . Max Security . | . . . . . Peak Influence 349 | 10 92 349 171 . Initial 121 | . . 15 121 . Average 110 | . 22 178 71 . Influence Increases 1333 | 25 367 838 103 . Destroy 0b10 Robot/C 900 | . 260 560 80 . Destroy 0b10 Robot/NC 120 | 25 25 70 . . Destroy Leader 252 | . 70 162 20 . Allied During Kill 3 | . . . 3 . Successful Hack 21 | . 11 10 . . Destroy Structure 7 | . 1 6 . . Partial Spotted 15 | . . 15 . . Lose Combat Pursuer 15 | . . 15 . . Influence Decreases 1333 | 25 329 565 414 . Entered New Map 213 | . . 23 190 . Time Decay 1070 | 25 329 522 194 . Lost Part 30 | . . 20 10 . Lost Ally 20 | . . . 20 . Squads Dispatched 4 | . 3 1 . . Investigation 3 | . 2 1 . . Extermination . | . . . . . Reinforcement 1 | . 1 . . . Assault . | . . . . . Garrison . | . . . . . Intercept . | . . . . . Searches Triggered . | . . . . . Construction Impeded . | . . . . . Haulers Reinforced . | . . . . . Active Scanning Responses . | . . . . . Cargo Convoy Interrupts . | . . . . . Stealth | -11 -10 -9 -9 -9 --------- Run | Yrd Mat Mat Min Exi Distress Signals 2 | . . 2 . . Communications Jammed . | . . . . . Distress Signals . | . . . . . Times Spotted 68 | . 20 39 4 5 Peak Tracking Total 9 | . 5 7 2 9 Tactical Retreats 1 | . . 1 . . Traps | -11 -10 -9 -9 -9 ------- Run | Yrd Mat Mat Min Exi Traps Triggered 4 | . 2 2 . . Indirectly . | . . . . . Trap Hack Attempts . | . . . . . Triggered . | . . . . . Disarmed . | . . . . . Reprogrammed . | . . . . . Reused . | . . . . . Traps Extracted . | . . . . . Installed . | . . . . . Triggered . | . . . . . Machines | -11 -10 -9 -9 -9 ---------- Run | Yrd Mat Mat Min Exi Machines Disabled 3 | . . . . 3 Max in Single Turn 1 | . . . . 1 Machines Repaired . | . . . . . Machines Dismantled . | . . . . . Machines Sabotaged . | . . . . . Overloaded Fab Kills . | . . . . . Hacking | -11 -10 -9 -9 -9 --------- Run | Yrd Mat Mat Min Exi Machines Accessed 12 | . 4 6 . 2 Terminals 9 | . 4 5 . . Fabricators . | . . . . . Repair Stations . | . . . . . Recycling Units 1 | . . 1 . . Scanalyzers . | . . . . . Garrison Access . | . . . . . Total Hacks 45 | . 8 13 . 24 Successful 30 | . 3 3 . 24 Failed 15 | . 5 10 . . Catastrophic 5 | . 2 3 . . Database Lockouts . | . . . . . Manual 5 | . 1 3 . 1 Terminals 19 | . 8 11 . . Fabricators . | . . . . . Repair Stations . | . . . . . Recycling Units 2 | . . 2 . . Scanalyzers . | . . . . . Garrison Access . | . . . . . Terminal Hacks 29 | . 3 2 . 24 Record 23 | . . . . 23 Prototype ID Bank 4 | . 3 1 . . Hauler Manifests 1 | . . 1 . . Proto ID Catalog 1 | . . . . 1 Fabricator Hacks . | . . . . . Repair Station Hacks . | . . . . . Recycling Unit Hacks 1 | . . 1 . . Retrieve Components 1 | . . 1 . . Scanalyzer . | . . . . . Garrison Access Hacks . | . . . . . Unauthorized Hacks . | . . . . . Terminals . | . . . . . Fabricators . | . . . . . Repair Stations . | . . . . . Recycling Units . | . . . . . Scanalyzers . | . . . . . Garrison Access . | . . . . . Data Cores Recovered . | . . . . . Used . | . . . . . Hacking Detections 8 | . 3 5 . . Full Trace Events 4 | . 2 2 . . Feedback Events . | . . . . . Feedback Blocked . | . . . . . Robot Schematics Acquired . | . . . . . Robots Built . | . . . . . Authchips . | . . . . . Time . | . . . . . Total Robot Build Rating . | . . . . . Part Schematics Acquired . | . . . . . Parts Built . | . . . . . Authchips . | . . . . . Time . | . . . . . Total Part Build Rating . | . . . . . Parts Repaired . | . . . . . Time . | . . . . . Parts Recycled . | . . . . . Recycled Matter . | . . . . . Retrieved Matter . | . . . . . Retrieved Components 9 | . . 9 . . Parts Scanalyzed . | . . . . . Part Schematics Acquired . | . . . . . Parts Damaged . | . . . . . Bothacking | -11 -10 -9 -9 -9 ------------ Run | Yrd Mat Mat Min Exi Used RIF Installer . | . . . . . Robots Hacked . | . . . . . Non-combat . | . . . . . Combat . | . . . . . Robot Hacks Applied . | . . . . . Relay Couplers Released . | . . . . . Fabnet Peak Effective % . | . . . . . Robots Rewired . | . . . . . Allies Hacked . | . . . . . Hacks Repelled . | . . . . . Allies | -11 -10 -9 -9 -9 -------- Run | Yrd Mat Mat Min Exi Total Allies 2 | . . . 2 . Largest Group 2 | . . . 2 1 Highest-Rated Group 45 | . . . 45 31 Highest-Rated Ally 31 | . . . 31 31 Total Orders . | . . . . . Ally Attacks 5 | . . . 5 . Total Damage 62 | . . . 62 . Kills 2 | . . . 2 . Allies Corrupted . | . . . . . Allies Melted . | . . . . . Intel | -11 -10 -9 -9 -9 ------- Run | Yrd Mat Mat Min Exi Active Infowar (turns) 2053 | 61 1164 828 . . Seismic 2053 | 61 1164 828 . . Robot Analysis Total . | . . . . . Derelict Logs Recovered . | . . . . . Drone Launches . | . . . . . Drone Recoveries . | . . . . . Exploration | -11 -10 -9 -9 -9 ------------- Run | Yrd Mat Mat Min Exi Turns Passed 5094 | 210 1164 2091 457 1172 Spaces Moved 2307 | 106 517 930 186 568 Core 42 | 14 . . . 28 Treads 2265 | 92 517 930 186 540 Legs . | . . . . . Wheels . | . . . . . Hover . | . . . . . Flight . | . . . . . Fastest Speed 50 | 50 160 160 160 100 Average Speed 185 | 145 193 183 237 174 Slowest Speed 250 | 160 240 240 240 250 Overloaded Moves . | . . . . . Propulsion Burnouts . | . . . . . Robots Hopped . | . . . . . Potential Cave-ins . | . . . . . Cave-ins Triggered . | . . . . . Exploration Rate (%) 51 | 7 68 82 33 68 Regions Visited 4 Branch Regions 2 Pre-discovered Areas 2 | . . . 1 1 Known Exits Taken . | . . . . . Unknown Exits Taken 4 | 1 1 1 1 . Scrap Searched . | . . . . . Spaces Dug . | . . . . . Terrain Destroyed 27 | . . . . 27 Melee . | . . . . . Projectile . | . . . . . AOE 27 | . . . . 27 Terrain Rammed . | . . . . . Walls Destroyed . | . . . . . Machines Disabled . | . . . . . Actions | -11 -10 -9 -9 -9 --------- Run | Yrd Mat Mat Min Exi Total 2786 | 136 599 1179 193 679 Wait 112 | . 7 101 . 4 Move 2303 | 105 516 929 185 568 Hop . | . . . . . Pick Up 71 | 11 12 29 2 17 Fast Attach 4 | . . 1 . 3 Attach 28 | 7 . 6 1 14 Detach . | . . . . . Swap 23 | . 5 17 . 1 Drop 55 | . 7 23 1 24 Fire 188 | 13 51 72 4 48 Melee . | . . . . . Ram . | . . . . . Kick . | . . . . . Crush 2 | . 1 1 . . Escape Stasis . | . . . . . Rewire . | . . . . . Trap . | . . . . . Miscellaneous . | . . . . . Route ------- -11/Scrapyard -10/Materials (discovered 3 exits: *Mat x2 / [*Min]) -9/Materials (discovered 3 exits: [*Mat] / [*Min x2]) -9/Mines -9/Exiles History --------- Turn | Location | Event 8 | -11/Scrapyard | Discovered new exit (range 14) 211 | -11/Scrapyard | Entered Materials 307 | -10/Materials | Build established: Mutant 451 | -10/Materials | Discovered new exit (range 8) 913 | -10/Materials | Discovered new exit (range 14) 1311 | -10/Materials | Discovered new exit (range 4) 1375 | -10/Materials | Entered another Materials area 1375 | -9/Materials | Evolved 2 slots: Propulsion x1, Weapon x1 2034 | -9/Materials | Build established: Scavenger-Gunner 2086 | -9/Materials | Discovered new exit (range 6) 2331 | -9/Materials | Discovered new exit (range 14) 2591 | -9/Materials | Discovered new exit (range 15) 3016 | -9/Materials | Build established: Scavenger-Tank 3466 | -9/Materials | Entered Mines 3511 | -9/Mines | Assembled infested the area 3576 | -9/Mines | Learned location of Storage (-8) 3913 | -9/Mines | Deemed a non-threat by the Exiles lab entrance 3913 | -9/Mines | Discovered new exit (range 5) 3923 | -9/Mines | Entered Exiles 3923 | -9/Exiles | Accompanied by 1 ally 3953 | -9/Exiles | Led the pair of lost Derelicts to a safe place 3983 | -9/Exiles | Met 8R-AWN 4021 | -9/Exiles | Met EX-HEX 4074 | -9/Exiles | Met EX-BIN 4097 | -9/Exiles | Aligned with FarCom system 4098 | -9/Exiles | Given EX-Vault access code 4135 | -9/Exiles | Opened EX-Vault 4149 | -9/Exiles | Found AWS/Gauss 4196 | -9/Exiles | Warned to stay clear of 0b10 Research branches 4261 | -9/Exiles | Met EX-DEC 4278 | -9/Exiles | Learned location of Zion (-6) 4303 | -9/Exiles | Build established: Scavenger-Mutant 4817 | -9/Exiles | Attacked by the Exiles 5004 | -9/Exiles | Core integrity fell below 50% 5020 | -9/Exiles | Lost 5 parts (2n3w) 5030 | -9/Exiles | Core integrity fell below 20% 5095 | -9/Exiles | Destroyed by 8R-AWN with 8R-AWN's Boregun Last Messages --------------- 05050_ Penetrated by HV Slug. 05054_ HV Slug penetrates Wall. 05054_ HV Slug penetrates Earth. 05059_ Penetrated by HV Slug. 05059_ Critical hit (Destroy). 05059_ Ion Engine destroyed. 05063_ Penetrated by HV Slug. 05070_ System corrupted: Lgt. Treads rejected. 05072_ HV Slug penetrates Wall. 05077_ HV Slug penetrates Earth. 05077_ Penetrated by HV Slug. 05081_ HV Slug penetrates Earth. 05081_ HV Slug penetrates Machine. 05082_ Earth collapses. 05086_ Penetrated by HV Slug. 05086_ HV Slug penetrates Wall. 05090_ Penetrated by HV Slug. 05090_ HV Slug penetrates Machine. 05090_ HV Slug penetrates Wall. 05095_ Penetrated by HV Slug. Map ----- +----------------------------------------------------+ | ?????????????????????????????????????????????????? | | ?????????????????????????????????????????????????? | | ?????????????????????????????????????????????????? | | ?????????????????????????????????????????????????? | | ?????????????????????????????????????????????????? | | ?????????????????????????????????????????????????? | | ?????????????????????????????????????????????????? | | ?????????????????????????????????????????????????? | | ?????????????????????????????????????????????????? | | ?????????????????????????????????????????????????? | | ?????????????????????????????????????????????????? | | ?????????????????????????????? ??????????????????" | | ?????????????????????????????? ??????????????????" | | ?????????????????????????????# ?????????????????#" | | ????????????????????????????? #?????????????????#" | | ????????????????????????????? ??????????????????#" | | ????????????????????????????# ??????????????????#" | | ???????????????????????????? #??????????????????## | | ???????????????????????????? #???????????????????? | | ???????????????????????????# ????????????????????? | | ??????????????????????????? #????????????????????? | | ???????? ??????????????####;##?#?????????????????? | | ??????? ######???????#!!! # #?????????????????? | | ??????? #""#??????#*!! ;#??????????????????? | | ??????? ??????#/!| ##??????????????????? | | ???????" #???### @ " #????????????####???? | | ???????" ####; #???????????? """??? | | ????????# ## "#????????????" """#?? | | ?????????# #" #;#### #???????" #?? | | ????????????# # #???????"" #?? | | ?????????????### # #???????"" "#?? | | ???????????????#"# ##??????? ""??? | | ?????????######## g # #???????" "???? | | ??######## !! ## ##???????# #???? | | ?? "! = ! ] ### # ####???### ###?# | | ?????# "!/ [ = #?## % #####X# #"### | | ?????####"! =[! ##??# """" | | ????????## ! #;#???#" % "" " | | ???????# ""###"##";##???#### | | ??????# ?? ?# #????????### % * | | ??????###??# #??###??????????### | | ??????????# #??????????????????## | | ?????????# #????????????????????## | | ????????# #??????????????????????##" | | ???????? #????????????????????????#""" | | ??????? #????????????????????????##" | | ?????? ??????????????????????????#"" | | ????????????????????????????????##""" "" | | ????????????????????????????????#""" """ | | ????????????????????????????????#""" "" | +----------------------------------------------------+ Best States ------------- Heat Dissipation 38 Energy Generation 12 Energy Capacity 265 Matter Stores 300 Matter Capacity 300 Sight Range 16 Terrain Scan Density 10 Armor Coverage 225 Evasion (%) 50 Recoil Reduction 3 Salvage Targeting 1 Item Schematics ----------------- None Robot Schematics ------------------ None Fabricated ------------ Nothing Repaired ---------- Nothing Alien Tech Used ----------------- None Achievements -------------- None Challenges ------------ None Game ------ Seed ReflectiveHardenedActivator Manual? 0 Play Time 00:29:50 Cumulative 80.7 hours Start 2025.07.06 @ 11:45:19 End 2025.07.06 @ 12:17:08 Sessions 1 Manual Loads 0 Difficulty Rogue Special Mode None Game No. 142 Rogue 142 Adventurer 0 Explorer 0 Win Type - Total 1 Types 1/0/0/0/0/0/0/0/0/0 Lore% 57 Gallery% 48 Achievement% 41 Wizard Run 0 Options --------- Layout 0 ASCII 0 Keyboard 0 Movement Mouse Keybinds 0 Fullscreen 1 Font 16/SmallcapsGlow Map View 75x55 Zoom Use 0% Tactical HUD 1 Map Filters NONE Filters NONE Steam 1 RUN: 152c643f-7a40-4fc7-9f4a-57629d0431d3